bitfinex/quotes_ETHUSD_20250403
["timestamp","ask_amount","ask_price","bid_price","bid_amount"]
[1743687283614,5.60203,1785.1,1784.7,5.60314]
[1743687283933,5.60226,1785.0,1784.6,11.2067]
[1743687284136,5.60161,1785.2,1784.5,0.8027]
[1743687284287,5.60349,1784.6,1784.2,6.38909]
[1743687284484,5.60296,1784.8,1784.4,5.60408]
[1743687284691,0.8294,1785.0,1784.2,0.7844]
[1743687284889,5.60129,1785.3,1784.4,5.6039]
[1743687285182,5.60129,1785.3,1784.2,0.84044073]
[1743687285183,5.60364,1784.6,1784.2,6.38903]
[1743687285485,0.7729,1784.8,1784.2,6.38903]
[1743687285486,8.878,1784.8,1784.2,0.7844]
[1743687285697,5.60202,1785.1,1784.2,6.38904]
[1743687285925,5.60235,1785.0,1784.6,5.60335]
[1743687286093,8.869,1785.2,1784.6,5.60335]
[1743687286299,5.60245,1785.0,1784.6,5.60335]
[1743687286605,5.60192,1785.1,1784.2,6.38903]
[1743687286803,5.6034,1784.7,1784.3,5.60432]
[1743687287005,11.20679,1784.7,1784.3,5.60432]
[1743687287218,14.47066,1785.2,1784.2,0.7844]
[1743687287424,5.603,1784.8,1784.4,5.60412]
[1743687287623,5.60224,1785.0,1784.6,5.60334]
[1743687287999,5.60224,1785.0,1784.5,5.6038]
[1743687288200,5.60198,1785.1,1784.4,5.60412]
[1743687288394,5.60198,1785.1,1784.7,11.20604]
[1743687288593,11.20353,1785.2,1784.8,6.35706]
[1743687288827,5.60099,1785.4,1785.0,5.60196]
[1743687289125,11.20223,1785.4,1785.0,5.60196]
[1743687289421,5.60243,1785.0,1784.6,5.60337]
[1743687289596,5.60198,1785.1,1784.6,5.6033]
[1743687289789,5.60258,1784.9,1784.5,5.60378]
[1743687289997,11.20564,1784.9,1784.4,11.98015]
[1743687290191,5.60207,1785.1,1784.7,5.60306]
[1743687290396,5.60193,1785.1,1784.6,5.60331]
[1743687290622,5.60161,1785.2,1784.7,11.20616]
[1743687290825,6.81052931,1785.5,1784.8,5.60269]
[1743687290826,15.59552931,1785.5,1784.8,5.60269]
[1743687291038,5.60108,1785.4,1785.0,5.60224]
[1743687291329,5.6028,1784.9,1784.7,0.7674]
[1743687291490,5.60067,1785.5,1784.5,5.60355]
[1743687291692,5.60129,1785.3,1784.6,5.60348]
[1743687291897,5.60284,1784.9,1784.4,6.38084]
[1743687292117,5.60299,1784.8,1784.4,0.7768]
[1743687292325,5.60202,1785.1,1784.6,5.60318]
[1743687292528,5.60131,1785.3,1784.6,5.60318]
[1743687292841,5.60213,1785.1,1784.7,5.60301]
[1743687293208,5.60164,1785.2,1784.7,0.05602907]
[1743687293399,5.60209,1785.1,1784.7,5.60306]
[1743687294130,5.60129,1785.3,1784.4,0.7768]
[1743687294316,5.60316,1784.8,1784.4,6.38092]
[1743687294629,5.60315,1784.8,1784.4,0.7768]
[1743687294801,5.60331,1784.7,1784.4,0.7768]
[1743687294999,5.60353,1784.6,1784.2,5.6047]
[1743687295202,5.60329,1784.7,1784.3,5.60434]
[1743687295426,11.20667,1784.7,1784.3,5.60434]
[1743687295913,11.20671,1784.7,1784.3,5.60434]
[1743687296116,5.60329,1784.7,1784.3,5.60434]
[1743687296307,5.60425,1784.4,1784.2,0.17508509]
[1743687296508,0.7926,1784.8,1784.2,0.17508509]
[1743687296811,5.60327,1784.7,1784.3,5.60416]
[1743687297222,11.20533,1784.9,1784.5,5.60377]
[1743687297418,5.60198,1785.1,1784.7,5.60317]
[1743687297625,11.77049,1785.6,1785.2,5.6015]
[1743687297626,5.60056,1785.6,1785.2,5.6015]
[1743687297830,5.59894,1786.1,1785.1,0.7769]
[1743687298001,0.29217814,1786.3,1785.8,11.19907]
[1743687298002,5.59861,1786.2,1785.8,11.19907]
[1743687298329,5.59861,1786.2,1785.8,11.19908]
[1743687298543,5.59818,1786.3,1785.9,5.59911]
[1743687298544,11.19646,1786.3,1785.9,5.59911]
[1743687298698,5.5988,1786.1,1785.7,0.7769]
[1743687298898,0.7982,1786.4,1785.8,5.59973]
[1743687299116,5.59847,1786.2,1785.9,5.59926]
[1743687299413,5.59898,1786.1,1785.7,6.37686]
[1743687299735,5.59753,1786.5,1785.8,5.59972]
[1743687299920,0.559753,1786.4,1785.7,11.97681]
[1743687300230,5.5991,1786.0,1785.7,0.7769]
[1743687300399,5.5988,1786.1,1785.7,6.37678]
[1743687300603,5.59996,1785.8,1785.4,0.7648]
[1743687300800,5.60143,1785.3,1785.1,0.7886]
[1743687301105,5.60095,1785.5,1785.1,6.39028]
[1743687301336,5.59999,1785.8,1785.1,0.7886]
[1743687301534,5.60078,1785.5,1785.1,6.39041]
[1743687301831,5.59941,1785.9,1785.2,0.05601585]
[1743687302037,5.60156,1785.3,1784.9,0.17500633]
[1743687302231,5.60161,1785.2,1784.9,0.17500633]
[1743687302400,5.60177,1785.2,1784.9,0.17500633]
[1743687302600,5.60164,1785.2,1784.9,0.17500633]
[1743687302803,5.60205,1785.1,1784.9,0.17500633]
[1743687303027,5.60224,1785.0,1784.9,0.17500633]
[1743687303402,5.60318,1784.7,1784.6,0.17500633]
[1743687303603,5.60211,1785.1,1784.6,0.17500633]
[1743687303924,5.60176,1785.2,1784.8,12.02239]
[1743687304234,5.60218,1785.1,1784.8,0.8168]
[1743687304432,5.60166,1785.2,1784.6,0.17500633]
[1743687304738,5.60166,1785.2,1784.6,5.83439226]
[1743687304936,5.60098,1785.4,1784.5,0.8245]
[1743687305134,3.7662,1785.5,1784.2,0.8245]
[1743687305135,5.60375,1784.6,1784.2,0.8245]
[1743687305506,5.60373,1784.6,1784.2,0.8245]
[1743687305708,5.6043,1784.4,1784.2,0.8245]
[1743687306153,5.60444,1784.3,1784.1,0.05]
[1743687306508,5.60506,1784.1,1784.0,3.46e-06]
[1743687306701,5.60758,1783.3,1783.2,0.7972]
[1743687306940,5.60758,1783.3,1783.1,0.05]
[1743687306941,5.60789,1783.2,1783.1,0.05]
[1743687307136,0.7705,1783.7,1783.1,0.05]
[1743687307341,5.60789,1783.2,1783.1,0.05]
[1743687308245,5.60979,1782.6,1782.2,0.7511]
[1743687308409,5.60856,1783.0,1782.4,5.61037]
[1743687308410,5.60873,1783.0,1782.4,5.61037]
[1743687308610,9.3109,1783.2,1782.2,0.7511]
[1743687308819,5.60915,1782.8,1782.2,0.7511]
[1743687309025,5.60791,1783.2,1782.6,5.6096]
[1743687309340,5.60944,1782.8,1782.2,0.7511]
[1743687309518,8.97346177,1783.0,1782.2,0.7511]
[1743687309721,5.61104,1782.2,1782.1,0.05]
[1743687309949,5.61075,1782.3,1782.1,0.05]
[1743687310164,5.61104,1782.2,1782.1,0.05]
[1743687311055,7.006808,1782.2,1782.1,0.05]
[1743687311713,5.61316,1781.6,1781.2,0.7883]
[1743687312015,5.61372,1781.4,1781.2,0.7883]
[1743687312213,5.61191,1782.0,1781.2,0.7883]
[1743687312431,5.61355,1781.5,1781.2,0.7883]
[1743687312633,5.61355,1781.5,1781.1,0.05]
[1743687313020,5.61373,1781.4,1781.1,0.05]
[1743687313537,8.513,1781.8,1781.1,0.05]
[1743687313538,11.22805,1781.3,1781.1,0.05]
[1743687313743,5.61419,1781.2,1781.1,0.05]
[1743687314122,5.61289,1781.7,1781.2,5.6141]
[1743687314427,6.37324,1781.9,1781.2,6.44554]
[1743687314625,8.505,1782.0,1781.3,5.6697838]
[1743687314827,5.61224,1781.9,1781.3,5.61365]
[1743687315149,5.61419,1781.2,1781.1,0.05]
[1743687315444,14.10689,1781.3,1781.1,0.05]
[1743687316012,8.493,1781.3,1781.1,0.05]
[1743687316326,12.04016,1781.7,1781.1,5.66437]
[1743687316522,6.42728,1781.7,1781.1,11.27874]
[1743687316728,6.42728,1781.7,1781.1,5.66437]
[1743687316913,1.949759,1781.7,1781.1,0.05]
[1743687317119,6.42708,1781.7,1781.1,0.05]
[1743687317318,5.61401,1781.3,1781.1,0.05]
[1743687317536,5.61419,1781.2,1781.1,0.05]
[1743687317736,5.61401,1781.3,1781.1,0.05]
[1743687317946,5.61419,1781.2,1781.1,0.05]
[1743687319317,17.85669,1781.2,1781.1,0.05]
[1743687319545,8.441,1781.2,1781.1,0.05]
[1743687320453,0.8015,1781.5,1781.1,0.05]
[1743687320620,5.61317,1781.6,1781.1,5.66437]
[1743687320621,5.61295,1781.6,1781.1,5.66437]
[1743687320822,5.6138,1781.4,1781.1,0.05]
[1743687321017,40.381,1781.7,1781.1,0.05]
[1743687321018,6.17539,1781.3,1781.1,0.05]
[1743687321345,6.38949,1781.2,1781.1,0.05]
[1743687322562,14.77849,1781.2,1781.1,0.05]
[1743687323433,8.389,1781.2,1781.1,0.05]
[1743687323769,14.00319,1781.2,1781.1,0.05]
[1743687323975,14.577169,1781.2,1781.1,0.05]
[1743687324174,8.389,1781.2,1781.1,0.05]
[1743687324467,14.00319,1781.2,1781.1,0.05]
[1743687325055,5.61419,1781.2,1781.1,0.05]
[1743687325246,11.22754,1781.4,1781.1,0.05]
[1743687325449,0.8241,1781.8,1781.1,0.05]
[1743687325643,5.61367,1781.4,1781.1,0.05]
[1743687325849,5.61307,1781.6,1781.2,5.61408]
[1743687326050,0.8241,1781.8,1781.5,5.61312]
[1743687326385,5.61231,1781.8,1781.4,5.61355]
[1743687326954,14.75425,1782.2,1781.5,5.61323]
[1743687327151,5.61215,1781.9,1781.6,5.61292]
[1743687327451,5.61167,1782.0,1781.6,5.61292]
[1743687327452,5.61167,1782.0,1781.6,5.6128]
[1743687327654,5.61203,1781.9,1781.5,5.61305]
[1743687327955,9.1141,1782.2,1781.1,0.05]
[1743687327956,5.61282,1781.7,1781.3,5.61363]
[1743687328158,5.61295,1781.6,1781.2,11.22818]
[1743687328471,5.61263,1781.7,1781.3,5.61385]
[1743687328675,11.2242,1781.9,1781.2,5.61419]
[1743687328875,5.61064,1782.4,1781.2,0.8109]
[1743687329050,5.6095,1782.7,1782.3,5.61047]
[1743687329386,5.60977,1782.7,1782.2,5.61087]
[1743687329546,5.60977,1782.7,1782.3,5.61054]
[1743687329747,0.792,1782.9,1782.2,5.61104]
[1743687329945,5.60821,1783.1,1782.4,5.61025]
[1743687330248,1.24212154,1783.2,1782.3,0.05609857]
[1743687330249,6.42376,1783.2,1782.3,0.05609857]
[1743687330449,5.60838,1783.1,1782.1,6.42225]
[1743687330677,5.60821,1783.1,1782.4,5.61022]
[1743687330999,5.6088,1783.0,1782.2,5.61104]
[1743687331158,5.60821,1783.1,1782.2,0.642194]
[1743687331362,5.60969,1782.7,1782.2,5.61092]
[1743687331569,11.21944,1782.7,1782.3,5.61064]
[1743687331746,5.61084,1782.3,1781.9,5.61184]
[1743687331947,5.61147,1782.1,1781.8,0.8063]
[1743687332252,5.61186,1782.0,1781.6,5.61266]
[1743687332458,5.60993,1782.6,1781.7,5.61231]
[1743687332657,5.60993,1782.6,1782.1,5.61135]
[1743687332658,5.60978,1782.6,1782.1,5.61135]
[1743687333015,5.61078,1782.3,1781.5,6.38772]
[1743687333291,5.61138,1782.1,1781.7,5.61241]
[1743687333460,5.61126,1782.2,1781.7,5.61239]
[1743687333664,5.61106,1782.2,1781.8,5.61218]
[1743687333884,4.99518472,1782.7,1781.9,5.61197]
[1743687333885,5.61074,1782.3,1781.9,5.61197]
[1743687334091,5.61178,1782.0,1781.6,5.61293]
[1743687334280,8.245,1782.2,1781.2,0.7822]
[1743687334480,8.245,1782.2,1781.4,5.61341]
[1743687334795,11.22386,1782.0,1781.6,5.61282]
[1743687334956,8.245,1782.2,1781.1,0.05]
[1743687334957,5.61293,1781.6,1781.1,0.05]
[1743687335163,5.61419,1781.2,1781.1,0.05]
[1743687335563,5.61387,1781.4,1781.1,0.05]
[1743687335792,8.265,1781.5,1781.1,0.05]
[1743687335793,5.61419,1781.2,1781.1,0.05]
[1743687335992,5.61356,1781.4,1781.1,0.05]
[1743687336215,0.7589,1781.7,1781.1,5.66431]
[1743687336500,5.6135,1781.5,1781.1,0.05]
[1743687336672,0.56135,1781.5,1781.1,0.05]
[1743687336998,5.61419,1781.2,1781.1,0.05]
[1743687337519,13.88619,1781.2,1781.1,0.05]
[1743687337721,11.22811,1781.3,1781.1,0.05]
[1743687337924,5.61399,1781.3,1781.1,0.05]
[1743687338221,5.61409,1781.3,1781.1,0.05]
[1743687338431,6.175599,1781.2,1781.1,0.05]
[1743687338622,5.61419,1781.2,1781.1,0.05]
[1743687339203,5.61409,1781.3,1781.1,0.05]
[1743687339413,5.61419,1781.2,1781.1,0.05]
[1743687339937,6.41879,1781.2,1781.1,0.05]
[1743687340495,6.41879,1781.2,1781.1,1e-05]
[1743687340496,10.64486051,1781.2,1781.1,1e-05]
[1743687340747,5.61613,1780.6,1780.3,0.17546268]
[1743687340910,5.61641,1780.5,1780.3,0.17546268]
[1743687341238,5.6161,1780.6,1780.3,2.68e-06]
[1743687341454,5.61671,1780.4,1780.3,2.68e-06]
[1743687341794,6.38151,1780.4,1780.3,2.68e-06]
[1743687342010,5.61734,1780.2,1780.1,0.05]
[1743687342595,11.23196,1780.7,1780.1,0.05]
[1743687342836,0.8259,1780.8,1780.1,0.05]
[1743687343114,5.6163,1780.6,1780.1,5.66752]
[1743687343315,5.61703,1780.3,1780.1,0.05]
[1743687343515,0.8259,1780.8,1780.1,0.05]
[1743687343724,5.61734,1780.2,1780.1,0.05]
[1743687343943,5.6164,1780.5,1780.1,5.66751]
[1743687344144,5.61644,1780.5,1780.1,5.6676]
[1743687344322,5.6165,1780.5,1780.1,5.66753]
[1743687344523,5.61731,1780.3,1780.1,0.05]
[1743687344836,5.61734,1780.2,1780.1,0.05]
[1743687345147,11.23464,1780.3,1780.1,0.05]
[1743687345348,5.61734,1780.2,1780.1,0.05]
[1743687346347,6.41904,1780.2,1780.1,0.05]
[1743687346514,6.41904,1780.2,1779.1,0.05]
[1743687346515,0.8017,1779.7,1779.1,0.05]
[1743687346712,0.8017,1780.0,1779.2,5.62032]
[1743687346913,0.8017,1780.0,1779.1,5.67063]
[1743687346914,5.62003,1779.4,1779.1,0.05]
[1743687347138,5.61989,1779.4,1779.1,0.05]
[1743687347344,5.6185,1779.9,1779.1,0.05]
[1743687347512,5.61937,1779.6,1779.2,11.24062]
[1743687347712,5.61902,1779.7,1779.1,0.05]
[1743687347914,5.61829,1779.9,1779.5,5.61948]
[1743687348147,5.61862,1779.8,1779.2,5.6205]
[1743687348450,5.61787,1780.1,1779.4,6.41692]
[1743687348667,11.23577,1780.1,1779.7,5.61865]
[1743687348829,5.61787,1780.1,1779.7,5.61865]
[1743687349150,11.23576,1780.1,1779.7,5.61874]
[1743687349359,5.61817,1780.0,1779.5,11.23906]
[1743687349521,5.6192,1779.7,1779.4,0.7971]
[1743687349728,5.61781,1780.1,1779.7,5.61881]
[1743687350113,5.61863,1779.8,1779.4,0.7971]
[1743687350314,5.61906,1779.7,1779.4,0.7971]
[1743687350542,11.23761,1779.8,1779.4,6.41685]
[1743687350722,5.6199,1779.4,1779.1,0.84]
[1743687351257,5.61974,1779.5,1779.1,6.46061]
[1743687351436,5.62037,1779.3,1779.1,0.05]
[1743687351646,5.6204,1779.3,1779.1,0.05]
[1743687352140,5.6205,1779.2,1779.1,0.05]
[1743687352565,5.6225,1778.6,1777.9,0.8268]
[1743687352743,5.62222,1778.7,1778.3,5.62317]
[1743687353053,5.62296,1778.5,1777.9,0.8268]
[1743687353219,5.62225,1778.7,1778.2,11.24719]
[1743687353418,0.7799,1778.9,1778.5,5.62253]
[1743687353618,5.62129,1779.0,1778.6,5.62239]
[1743687353840,5.62081,1779.1,1778.4,5.62272]
[1743687354139,0.7799,1779.2,1777.7,21.83262484]
[1743687354140,0.7799,1779.2,1778.3,0.05622838]
[1743687354346,5.62189,1778.8,1778.4,5.62289]
[1743687354552,5.62222,1778.7,1778.1,0.05]
[1743687354848,0.8062,1778.6,1778.1,0.05]
[1743687355066,8.9982,1778.6,1778.1,0.05]
[1743687355267,5.62304,1778.4,1778.1,0.05]
[1743687355419,8.192,1778.6,1778.3,5.62313]
[1743687355821,5.62274,1778.5,1778.1,0.05]
[1743687356021,8.192,1778.6,1778.4,5.62292]
[1743687356241,13.80533,1779.0,1778.5,5.62251]
[1743687356441,5.62161,1778.9,1778.5,5.62251]
[1743687356757,11.24381,1778.8,1778.3,5.62318]
[1743687356966,5.62177,1778.8,1778.4,5.62288]
[1743687357451,5.62177,1778.8,1778.3,11.24668]
[1743687357641,5.62177,1778.8,1778.3,5.62334]
[1743687357849,5.62296,1778.5,1778.2,0.7694]
[1743687358032,0.562177,1778.8,1778.2,6.39294]
[1743687358231,0.562177,1778.8,1778.2,0.7694]
[1743687358232,5.62273,1778.5,1778.2,0.7694]
[1743687358432,5.62253,1778.6,1778.2,12.01659]
[1743687358644,5.62087,1779.1,1778.6,5.62225]
[1743687358845,5.62041,1779.3,1778.4,5.62303]
[1743687359044,0.7541,1779.5,1779.2,5.6203]
[1743687359253,5.61958,1779.5,1779.1,5.62066]
[1743687359449,5.61914,1779.7,1779.2,5.62028]
[1743687359756,5.61938,1779.6,1779.1,5.62052]
[1743687359959,5.61938,1779.6,1779.2,5.62048]
[1743687360264,55.00939,1779.9,1779.5,5.61951]
[1743687360564,5.61876,1779.8,1779.4,5.61973]
[1743687360859,5.62067,1779.2,1778.9,0.7778]
[1743687361061,5.62188,1778.8,1778.6,0.7733]
[1743687361227,5.62231,1778.7,1778.3,6.39663]
[1743687361431,5.62142,1779.0,1778.6,5.62239]
[1743687361627,5.62114,1779.0,1778.3,0.7733]
[1743687361984,5.62114,1779.0,1778.6,5.62223]
[1743687361985,5.62126,1779.0,1778.6,5.62223]
[1743687362161,11.24188,1779.1,1778.7,5.62187]
[1743687362335,5.62145,1778.9,1778.6,5.62223]
[1743687362883,5.62322,1778.4,1778.1,0.05]
[1743687363029,11.31873133,1778.8,1778.1,0.05]
[1743687363224,11.24661,1778.4,1778.1,0.05]
[1743687363451,5.62317,1778.4,1778.1,0.8257]
[1743687363650,10.22052133,1778.8,1778.1,0.05]
[1743687363850,0.7914,1778.8,1778.1,0.05]
[1743687364049,8.162,1779.0,1778.2,0.7816]
[1743687364250,5.62273,1778.5,1778.2,0.7816]
[1743687364550,5.62225,1778.7,1778.2,0.7816]
[1743687364749,5.62146,1778.9,1778.2,0.7816]
[1743687365065,5.6228,1778.5,1778.2,0.7816]
[1743687365268,5.62242,1778.6,1778.2,0.7816]
[1743687365762,8.162,1779.0,1778.2,0.7816]
[1743687365931,13.78315,1779.0,1778.4,5.62289]
[1743687366136,5.62158,1778.9,1778.3,5.67954722]
[1743687366334,5.62118,1779.0,1778.5,5.62253]
[1743687366538,5.62109,1779.1,1778.6,5.62222]
[1743687366746,5.6205,1779.3,1778.4,5.62273]
[1743687366747,5.6213,1779.0,1778.4,5.62273]
[1743687366966,11.24264,1779.0,1778.4,5.67894803]
[1743687367171,3.0,1779.3,1778.3,0.0562234]
[1743687367390,0.3,1779.2,1778.6,5.62225]
[1743687367541,5.62108,1779.1,1778.5,5.62256]
[1743687367736,5.62156,1778.9,1778.4,5.62277]
[1743687367935,5.62195,1778.8,1778.3,5.62334]
[1743687368131,5.62113,1779.0,1778.2,0.7816]
[1743687368337,5.62326,1778.4,1778.1,0.05]
[1743687368537,0.562113,1778.9,1778.3,5.62316]
[1743687368771,5.62178,1778.8,1778.4,0.7599]
[1743687369260,5.62116,1779.0,1778.4,0.7599]
[1743687369568,5.62202,1778.8,1778.4,0.7599]
[1743687369773,12.42822133,1779.1,1778.4,0.7599]
[1743687369774,5.62208,1778.7,1778.4,0.7599]
[1743687370134,3.80733133,1779.1,1778.4,6.38271]
[1743687370335,6.43713,1779.5,1778.9,5.62132]
[1743687370638,49.88595133,1779.8,1779.3,5.61996]
[1743687370639,0.8174,1779.8,1779.3,5.61996]
[1743687370838,13.69246,1779.9,1779.4,5.6197]
[1743687370839,5.6183,1779.9,1779.4,5.6197]
[1743687371174,5.61886,1779.8,1779.2,5.62049]
[1743687371354,3.80733133,1780.1,1779.0,8.8307]
[1743687371555,3.0,1779.9,1779.0,8.8307]
[1743687371733,5.62045,1779.3,1779.0,0.7597]
[1743687371939,5.61999,1779.4,1779.0,0.7597]
[1743687372141,9.42688133,1779.5,1778.7,0.8299]
[1743687372444,5.62026,1779.3,1778.7,0.8299]
[1743687372642,8.609,1779.8,1778.7,0.8299]
[1743687372643,5.61921,1779.7,1778.8,5.62176]
[1743687372872,5.61892,1779.7,1778.7,0.8299]
[1743687373075,5.61925,1779.6,1779.0,5.62098]
[1743687373384,5.61892,1779.7,1778.9,0.8299]
[1743687373385,5.61915,1779.7,1779.1,0.05620117]
[1743687373538,5.61928,1779.6,1779.0,5.62099]
[1743687373739,5.61928,1779.6,1778.9,0.8299]
[1743687373740,5.6204,1779.3,1778.9,0.8299]
[1743687373975,0.561928,1779.6,1779.0,0.05620834]
[1743687374156,5.61893,1779.7,1779.2,5.6203]
[1743687374359,5.61893,1779.7,1779.0,5.62101]
[1743687374644,5.62033,1779.3,1778.9,0.8299]
[1743687374951,11.24075,1779.3,1778.9,0.8299]
[1743687375164,5.62068,1779.2,1778.9,0.8299]
[1743687375373,5.62126,1779.0,1778.6,0.8118]
[1743687375547,5.62082,1779.1,1778.6,6.43403]
[1743687375865,5.6202,1779.3,1778.7,0.05621854]
[1743687376048,5.61987,1779.4,1778.9,5.62139]
[1743687376246,13.64226,1779.6,1779.1,5.62069]
[1743687376451,8.023,1779.6,1779.0,5.62113]
[1743687376650,3.0,1780.0,1779.2,0.7918]
[1743687376955,5.61862,1779.8,1779.3,5.62014]
[1743687377145,5.61964,1779.5,1779.2,0.7918]
[1743687377339,5.61924,1779.6,1779.2,0.7918]
[1743687377624,5.61968,1779.5,1779.2,0.7918]
[1743687377771,5.61914,1779.7,1779.2,6.41218]
[1743687377970,5.6193,1779.6,1779.2,6.41218]
[1743687378292,5.61862,1779.8,1779.3,5.62004]
[1743687378457,5.61862,1779.8,1779.3,5.61999]
[1743687378790,5.61969,1779.5,1779.2,0.7918]
[1743687379088,5.61926,1779.6,1779.2,0.7918]
[1743687379373,5.61956,1779.5,1779.2,0.7918]
[1743687379577,5.61956,1779.5,1778.7,13.58808]
[1743687379578,5.62018,1779.3,1778.6,0.794]
[1743687379764,3.80733133,1779.5,1778.6,0.794]
[1743687379962,5.62106,1779.1,1778.7,5.62192]
[1743687380141,11.24123,1779.2,1778.7,5.62192]
[1743687380344,5.62102,1779.1,1778.6,6.41629]
[1743687380679,5.62108,1779.1,1778.6,6.41629]
[1743687380876,5.6213,1779.0,1778.6,6.41629]
[1743687381175,5.62128,1779.0,1778.6,5.62228]
[1743687381376,5.6202,1779.3,1778.4,5.62297]
[1743687381377,5.62097,1779.1,1778.4,5.62297]
[1743687381552,6.183137,1779.1,1778.3,0.7556]
[1743687381892,5.62366,1778.2,1778.1,0.05]
[1743687382046,3.80733133,1778.4,1778.1,0.05]
[1743687382396,5.62366,1778.2,1778.1,0.05]
[1743687382627,6.196922,1778.2,1778.1,0.05]
[1743687382909,0.814,1777.9,1776.4,0.8152]
[1743687383043,4.62133133,1777.6,1776.5,0.0562876]
[1743687383247,6.08827313,1777.5,1777.0,5.62719]
[1743687383443,3.0,1777.9,1777.2,5.62678]
[1743687383673,3.0,1777.9,1777.1,6.43463]
[1743687383674,5.62577,1777.6,1777.1,6.43463]
[1743687383874,8.08,1777.9,1777.2,5.62681]
[1743687384049,5.62445,1778.0,1777.5,5.6257]
[1743687384250,5.62445,1778.0,1777.4,5.62619]
[1743687384448,6.186895,1778.0,1777.5,5.62587]
[1743687384648,5.62488,1777.9,1777.3,5.62648]
[1743687384956,5.62545,1777.7,1777.2,5.62681]
[1743687385502,5.62608,1777.5,1777.1,0.98334691]
[1743687385710,5.62571,1777.6,1777.1,6.4346]
[1743687385855,5.62632,1777.4,1777.1,0.8075]
[1743687386372,5.62632,1777.4,1776.9,6.42703]
[1743687386994,5.62589,1777.5,1777.0,5.6273]
[1743687387491,5.62589,1777.5,1777.1,5.62713]
[1743687387875,0.7602,1778.1,1777.2,0.812]
[1743687388095,8.43835413,1778.4,1777.2,0.812]
[1743687388096,5.62383,1778.2,1777.6,5.62524]
[1743687388294,5.62383,1778.2,1777.7,5.62524]
[1743687388607,13.65025,1778.4,1777.8,0.8239]
[1743687388816,5.62334,1778.3,1777.4,0.8239]
[1743687388958,5.62524,1777.7,1777.4,0.8239]
[1743687389164,5.62547,1777.7,1777.4,0.8239]
[1743687389775,5.62605,1777.5,1777.1,0.7805]
[1743687390087,3.80733133,1777.6,1777.1,0.7805]
[1743687390263,5.62631,1777.4,1777.1,0.7805]
[1743687390465,11.25273,1777.4,1777.1,0.7805]
[1743687390709,5.62682,1777.2,1776.8,0.7882]
[1743687390863,5.62614,1777.5,1776.6,5.62871]
[1743687390864,5.62749,1777.0,1776.6,5.62871]
[1743687391213,5.62841,1776.7,1776.4,0.7882]
[1743687391390,5.62877,1776.6,1776.1,0.8372]
[1743687391759,5.62905,1776.5,1776.1,0.05]
[1743687391959,0.562905,1776.4,1776.1,0.05]
[1743687393086,5.62916,1776.5,1776.1,0.05]
[1743687393289,5.6295,1776.4,1776.1,0.05]
[1743687393584,5.62897,1776.6,1776.1,0.05]
[1743687393585,7.947,1776.6,1776.1,0.05]
[1743687393807,10.24025133,1776.7,1776.1,5.68016]
[1743687394023,5.62778,1776.9,1776.2,6.40228]
[1743687394208,7.933,1777.1,1776.2,0.7723]
[1743687394535,10.67116176,1777.3,1776.3,0.05628688]
[1743687394685,46.654,1777.4,1776.6,0.8161]
[1743687394886,40.484,1777.4,1776.6,6.44474]
[1743687395215,5.62612,1777.5,1776.9,11.25518]
[1743687395395,9.43301133,1777.6,1777.0,5.62715]
[1743687395731,9.43301133,1777.6,1777.1,5.62712]
[1743687395897,3.80733133,1777.6,1776.9,5.62765]
[1743687396240,15.05874133,1777.6,1777.0,5.62734]
[1743687396386,5.62591,1777.5,1776.9,11.25532]
[1743687396692,5.62645,1777.4,1776.8,11.25598]
[1743687396897,5.62645,1777.4,1776.9,5.62773]
[1743687397214,5.62645,1777.4,1776.8,5.62801]
[1743687397525,3.80733133,1777.6,1776.6,0.8161]
[1743687397728,6.957,1777.9,1776.7,0.05627211]
[1743687397729,18.67033133,1777.9,1776.7,0.05627211]
[1743687397881,12.50033133,1777.9,1777.1,0.7586]
[1743687398077,46.671,1778.3,1777.1,0.7586]
[1743687398078,6.17,1778.3,1777.2,0.7586]
[1743687398288,12.91385876,1778.5,1778.0,5.62426]
[1743687398518,3.80733133,1778.8,1778.3,5.62317]
[1743687398692,3.80733133,1778.8,1777.6,7.908]
[1743687398693,0.05,1778.9,1778.7,5.62191]
[1743687398887,0.05,1778.9,1778.5,5.62249]
[1743687399089,0.05,1778.9,1778.4,0.8057]
[1743687399284,0.05,1778.9,1778.4,12.05141]
[1743687399478,0.617128,1778.9,1778.4,0.8057]
[1743687399784,5.62234,1778.7,1778.1,5.62397]
[1743687399983,6.41999,1778.5,1777.9,5.62461]
[1743687400184,0.05,1778.9,1777.7,3.7505]
[1743687400499,0.05,1778.9,1778.8,5.62176]
[1743687401304,0.05,1778.9,1778.7,5.62196]
[1743687401617,0.05,1778.9,1778.7,5.62185]
[1743687401781,0.05,1778.9,1778.8,5.62176]
[1743687403118,0.05,1778.9,1778.8,6.48317273]
[1743687403320,0.05,1778.9,1778.8,6.42696]
[1743687403826,0.05,1778.9,1778.6,5.62234]
[1743687403827,0.05,1778.9,1778.6,5.62227]
[1743687404023,5.67168,1778.9,1777.8,5.62463]
[1743687404196,5.67168,1778.9,1778.3,5.62318]
[1743687404522,0.05,1778.9,1778.4,5.62278]
[1743687404821,0.05,1778.9,1778.3,5.62329]